Workbook

Sheet Type project
D1: Factor | H1: Factor | J1: Indicatie
H2: =Wegingsfactoren!H7 -> 8 | I2: =SUM(E4:E5)+SUM(,I4:I7) -> 11 | J2: =I2/Wegingsfactoren!H7 -> 1.375
B3: Impact verhogende aspecten | F3: Kans verhogende aspecten | J3: =IF(Wegingsfactoren!H7=0,"Wegings-factoren zijn niet gevuld",IF(J2=0,"Geen",IF(J2<=1.49,"LAAG",IF(J2<=2.28,"GEMIDDELD",IF(J2>2.28,"HOOG"))))) -> LAAG
B4: ='Onderhoud teksten Impact&Kans'!B3 -> Omvang van projecten met een ICT component (tussen de < €5 mln = laag risico, > €5 en < €20 mln = gemiddeld, > €20 mln = hoog). | C4: 2 | D4: =Wegingsfactoren!D3 -> 1 | E4: =IF(C4=1,0,IF(C4=2,1*D4,IF(C4=3,2*D4,IF(C4=4,3*D4)))) -> 1 | F4: ='Onderhoud teksten Impact&Kans'!D3 -> Onvoldoende duidelijkheid over verantwoordelijkheid voor data (duidelijkheid = laag, onduidelijkheid = hoog). | G4: 2 | H4: =Wegingsfactoren!G3 -> 1 | I4: =IF(G4=1,0,IF(G4=2,1*H4,IF(G4=3,3*H4,))) -> 1
B5: ='Onderhoud teksten Impact&Kans'!B4 -> Publieke belangstelling (select gezelschap = laag, lokale pers = gemiddeld, landelijke pers = hoog). | C5: 2 | D5: =Wegingsfactoren!D4 -> 1 | E5: =IF(C5=1,0,IF(C5=2,1*D5,IF(C5=3,2*D5,IF(C5=4,3*D5)))) -> 1 | F5: ='Onderhoud teksten Impact&Kans'!D4 -> Onvoldoende onderbouwing van data noodzaak (veel onderbouwing = laag, geen onderbouwing = hoog). | G5: 2 | H5: =Wegingsfactoren!G4 -> 1 | I5: =IF(G5=1,0,IF(G5=2,1*H5,IF(G5=3,3*H5,))) -> 1
F6: ='Onderhoud teksten Impact&Kans'!D5 -> Gebruik van nieuwe technologieën (marginaal of geen = laag, proven technology = gemiddeld, cutting edge = hoog). | G6: 2 | H6: =Wegingsfactoren!G5 -> 1 | I6: =IF(G6=1,0,IF(G6=2,1*H6,IF(G6=3,2*H6,IF(G6=4,3*H6)))) -> 1
F7: ='Onderhoud teksten Impact&Kans'!D6 -> Betrokkenheid meerdere (ook externe) partijen (geen = laag, partijen uit mantelcontract = gemiddeld, partijen buiten het contract = hoog). | G7: 3 | H7: =Wegingsfactoren!G6 -> 3 | I7: 6
I8: =SUM(E10:E12,I10:I12) -> 22 | J8: =I8/(C9+G9) -> 3.666666667
B9: Maatregelen | C9: =4-(COUNTIF(C10:C13,"")) -> 3 | D9: =4-(COUNTIF(C10:C13,"")) -> 3 | G9: =4-(COUNTIF(G10:G13,"")) -> 3 | I9: =IF(G9=1,0,IF(G9=2,Wegingsfactoren!G8,IF(G9=3,3*Wegingsfactoren!G8))) -> 0 | J9: =IF(I8=0,"Geen",IF(J8<=1.9,"MAG",IF(J8<=3.9,"GEWENST",IF(J8>3.9,"VEREIST")))) -> GEWENST
B10: ='Concern Maatregelen'!B3 -> Mogelijk definiëren van deelprojecten met duidelijke afbakening. | C10: 3 | E10: =IF(C10=1,0,IF(C10=2,1,IF(C10=3,3,IF(C10=4,5)))) -> 3 | F10: ='Concern Maatregelen'!E3 -> Benoem aan wie na afloop van het project de data worden overgedragen. | G10: 4 | I10: =IF(G10=1,0,IF(G10=2,1,IF(G10=3,3,IF(G10=4,5,G10)))) -> 5
B11: ='Concern Maatregelen'!B4 -> Communicatiestrategie binnen de organisatie op het juiste niveau bepalen. | C11: 3 | E11: =IF(C11=1,0,IF(C11=2,1,IF(C11=3,3,IF(C11=4,5)))) -> 3 | F11: ='Concern Maatregelen'!E4 -> Per data element doel omschrijven. | G11: 4 | I11: =IF(G11=1,0,IF(G11=2,1,IF(G11=3,3,IF(G11=4,5,G11)))) -> 5
B12: ='Concern Maatregelen'!B5 -> Zorgvuldige informatievoorziening over het project naar buiten. | C12: 2 | E12: 1 | F12: ='Concern Maatregelen'!E5 -> Afspraken met derde partijen contractueel vastleggen (juridisch normen kader kan hierbij helpen). | G12: 4 | I12: 5
B18: Maak een keuze
B19: LAAG
B20: GEMIDDELD
B21: HOOG
B22: Maak een keuze
B23: LAAG
B24: HOOG
B25: Maak een keuze
B26: MAG
B27: GEWENST
B28: VEREIST

Sheet Aard van gegevens
D1: Factor | H1: Factor | J1: Indicatie
H2: =Wegingsfactoren!H13 -> 23 | I2: =SUM(E4:E7)+SUM(I4:I6) -> 62 | J2: =I2/Wegingsfactoren!H13 -> 2.695652174
A3: ???? | B3: Impact verhogende aspecten | F3: Kans verhogende aspecten | J3: =IF(Wegingsfactoren!H13=0,"Wegings-factoren zijn niet gevuld",IF(J2=0,"Geen",IF(J2<=1.49,"LAAG",IF(J2<=2.5,"GEMIDDELD",IF(J2>2.5,"HOOG"))))) -> HOOG
B4: ='Onderhoud teksten Impact&Kans'!B9 -> Gebruik bijzondere persoonsgegevens (geen = laag, gemiddeld, veel = hoog). | C4: 4 | D4: =Wegingsfactoren!D9 -> 3 | E4: =IF(C4=1,0,IF(C4=2,1*D4,IF(C4=3,2*D4,IF(C4=4,3*D4)))) -> 9 | F4: ='Onderhoud teksten Impact&Kans'!D9 -> Hoeveelheid personen waarover data verzameld wordt (< 100 personen = laag, > 100 en < 10.000 personen = gemiddeld, > 10.000 personen = hoog). | G4: 3 | H4: =Wegingsfactoren!G9 -> 3 | I4: =IF(G4=1,0,IF(G4=2,1*H4,IF(G4=3,2*H4,IF(G4=4,3*H4)))) -> 6
B5: ='Onderhoud teksten Impact&Kans'!B10 -> Hoeveelheid identificerende gegevens (weinig = laag, gemiddeld, veel = hoog). | C5: 4 | D5: =Wegingsfactoren!D10 -> 5 | E5: =IF(C5=1,0,IF(C5=2,1*D5,IF(C5=3,2*D5,IF(C5=4,3*D5)))) -> 15 | F5: ='Onderhoud teksten Impact&Kans'!D10 -> Aantal personen/instanties dat toegang heeft tot de informatie (op need to know basis = laag, bovenmatig = gemiddeld, onbekend of onduidelijk = hoog). | G5: 2 | H5: =Wegingsfactoren!G10 -> 1 | I5: =IF(G5=1,0,IF(G5=2,1*H5,IF(G5=3,2*H5,IF(G5=4,3*H5)))) -> 1
B6: ='Onderhoud teksten Impact&Kans'!B11 -> Gegevens kunnen basis zijn voor beoordeling van gedrag of prestatie van het individu (nee = laag, ja = hoog). | C6: 3 | D6: =Wegingsfactoren!D11 -> 5 | E6: =IF(C6=1,0,IF(C6=2,1*D6,IF(C6=3,3*D6,))) -> 15 | F6: ='Onderhoud teksten Impact&Kans'!D11 -> Onvoldoende beveiliging van de data (aantoonbaar voldoende = laag, marginaal maar niet getoetst = gemiddeld, onbekend of onvoldoende = hoog). | G6: 2 | H6: =Wegingsfactoren!G11 -> 1 | I6: =IF(G6=1,0,IF(G6=2,1*H6,IF(G6=3,2*H6,IF(G6=4,3*H6)))) -> 1
B7: ='Onderhoud teksten Impact&Kans'!B12 -> Gegevens kunnen gebruikt worden voor identiteitsfraude (nee = laag, ja = hoog). | C7: 3 | D7: =Wegingsfactoren!D12 -> 5 | E7: =IF(C7=1,0,IF(C7=2,1*D7,IF(C7=3,3*D7,))) -> 15
I8: =SUM(E10:E13,I10:I13) -> 17 | J8: =I8/(C9+G9) -> 3.4
B9: Maatregelen | C9: =4-(COUNTIF(B10:B13,"")) -> 3 | E9: =4-(COUNTIF(D10:D13,"")) -> 0 | G9: =4-(COUNTIF(F10:F13,"")) -> 2 | J9: =IF(J8=0,"Geen",IF(J8<=1.9,"MAG",IF(J8<=3.9,"GEWENST",IF(J8>3.9,"VEREIST")))) -> GEWENST
B10: ='Concern Maatregelen'!B9 -> Dataminimalisatie op basis van doelbinding. | C10: 4 | E10: =IF(C10=1,0,IF(C10=2,1,IF(C10=3,3,IF(C10=4,5,0)))) -> 5 | F10: ='Concern Maatregelen'!E9 -> Beveiligen van data tegen lekken en hacken. | G10: 4 | I10: =IF(G10=1,0,IF(G10=2,1,IF(G10=3,3,IF(G10=4,5,)))) -> 5
B11: ='Concern Maatregelen'!B10 -> Zorgen voor voldoende kwaliteit van data. | C11: 4 | E11: =IF(C11=1,0,IF(C11=2,1,IF(C11=3,3,IF(C11=4,5,0)))) -> 5 | F11: ='Concern Maatregelen'!E10 -> Authenticatie en autorisatie op basis van least privileges (minimale rechten). | G11: 2 | I11: =IF(G11=1,0,IF(G11=2,1,IF(G11=3,3,IF(G11=4,5,)))) -> 1
B12: ='Concern Maatregelen'!B11 -> Plaats data binnen de eigen organisatie. | C12: 2 | E12: 1
B18: Maak een keuze
B19: LAAG
B20: GEMIDDELD
B21: HOOG
B22: Maak een keuze
B23: LAAG
B24: HOOG
B25: Maak een keuze
B26: MAG
B27: GEWENST
B28: VEREIST
B30: GEWENST
B32: VEREIST

Sheet Betrokken partijen
D1: Factor | H1: Factor | J1: Indicatie
I2: =SUM(E4:E7)+SUM(I4:I7) -> 7 | J2: =I2/Wegingsfactoren!H19 -> 1.166666667
B3: Impact verhogende aspecten | F3: Kans verhogende aspecten | J3: =IF(Wegingsfactoren!H19=0,"Wegings-factoren zijn niet gevuld",IF(J2=0,"Geen",IF(J2<=1.49,"LAAG",IF(J2<=2.28,"GEMIDDELD",IF(J2>2.28,"HOOG"))))) -> LAAG
B4: ='Onderhoud teksten Impact&Kans'!B15 -> Partijen van buiten de EU (landen binnen Europese Economische Ruimte (EER) (binnen Europa = laag, buiten Europa = hoog). | C4: 2 | D4: =Wegingsfactoren!D15 -> 1 | E4: =IF(C4=1,0,IF(C4=2,1*D4,IF(C4=3,3*D4,))) -> 1 | F4: ='Onderhoud teksten Impact&Kans'!D15 -> Hoeveelheid intern verwerkende partijen (enkele partij = laag, een paar = gemiddeld, meerdere partijen = hoog). | G4: 2 | H4: =Wegingsfactoren!G15 -> 3 | I4: =IF(G4=1,0,IF(G4=2,1*H4,IF(G4=3,2*H4,IF(G4=4,3*H4)))) -> 3
F5: ='Onderhoud teksten Impact&Kans'!D16 -> Betrokkenheid van externe verwerkende partijen (enkele partij = laag, een paar = gemiddeld, meerdere partijen = hoog). | G5: 3 | H5: =Wegingsfactoren!G16 -> 1 | I5: =IF(G5=1,0,IF(G5=2,1*H5,IF(G5=3,2*H5,IF(G5=4,3*H5)))) -> 2
F6: ='Onderhoud teksten Impact&Kans'!D17 -> Verschllende wettelijke regimes van betrokken partijen (vergelijkbaar of beter = laag, anders = hoog). | G6: 2 | H6: =Wegingsfactoren!G17 -> 1 | I6: =IF(G6=1,0,IF(G6=2,1*H6,IF(G6=3,3*H6,))) -> 1
I8: =SUM(E10,I10:I13) -> 14 | J8: =I8/(C9+G9) -> 3.5
B9: Maatregelen | C9: =4-(COUNTIF(B10:B13,"")) -> 1 | G9: =3-(COUNTIF(F10:F12,"")) -> 3 | J9: =IF(J8=0,"Geen",IF(J8<=1.9,"MAG",IF(J8<=3.9,"GEWENST",IF(J8>3.9,"VEREIST")))) -> GEWENST
B10: ='Concern Maatregelen'!B10 -> Zorgen voor voldoende kwaliteit van data. | C10: 4 | E10: =IF(C10=1,0,IF(C10=2,1,IF(C10=3,3,IF(C10=4,5,0)))) -> 5 | F10: ='Concern Maatregelen'!E15 -> Bewerkersovereenkomsten, juridisch normenkader. | G10: 4 | I10: =IF(G10=1,0,IF(G10=2,1,IF(G10=3,3,IF(G10=4,5,)))) -> 5
F11: ='Concern Maatregelen'!E16 -> Certificering (bijv. ISO 27001). | G11: 3 | I11: =IF(G11=1,0,IF(G11=2,1,IF(G11=3,3,IF(G11=4,5,)))) -> 3
F12: ='Concern Maatregelen'!E17 -> Periodieke auditing. | G12: 2 | I12: 1
B18: Maak een keuze
B19: LAAG
B20: GEMIDDELD
B21: HOOG
B22: Maak een keuze
B23: LAAG
B24: HOOG
B25: Maak een keuze
B26: MAG
B27: GEWENST
B28: VEREIST

Sheet Verzamelen
D1: Factor | H1: Factor | J1: Indicatie
I2: =SUM(E4:E5)+I4 -> 3 | J2: =I2/Wegingsfactoren!H24 -> 1
B3: Impact verhogende aspecten | F3: Kans verhogende aspecten | J3: =IF(Wegingsfactoren!H24=0,"Wegings-factoren zijn niet gevuld",IF(J2=0,"Geen",IF(J2<=1.49,"LAAG",IF(J2<=2.28,"GEMIDDELD",IF(J2>2.28,"HOOG"))))) -> LAAG
B4: ='Onderhoud teksten Impact&Kans'!B21 -> De mate waarin het individu op de hoogte is/kan zijn dat informatie over hem verzameld wordt (op de hoogte = laag, niet op de hoogte = hoog). | C4: 2 | D4: =Wegingsfactoren!D21 -> 1 | E4: =IF(C4=1,0,IF(C4=2,1*D4,IF(C4=3,3*D4,))) -> 1 | F4: ='Onderhoud teksten Impact&Kans'!D21 -> De veiligheid van de methode van verzamelen (afluisterbaar, cookies,..) (afgeschermde fysieke ruimte en/of versleutelde internet verbinding = laag, geen veiligheidsmaatregelen = hoog). | G4: 2 | H4: =Wegingsfactoren!G21 -> 1 | I4: =IF(G4=1,0,IF(G4=2,1*H4,IF(G4=3,3*H4,))) -> 1
B5: ='Onderhoud teksten Impact&Kans'!B22 -> De mate waarin het individu invloed kan uitoefenen op de gegevens die over hem verzameld worden (invloed = laag, geen of nauwelijks invloed = hoog). | C5: 2 | D5: =Wegingsfactoren!D22 -> 1 | E5: =IF(C5=1,0,IF(C5=2,1*D5,IF(C5=3,3*D5,))) -> 1
I7: =SUM(E9:E10,I9:I10) -> 16 | J7: =I7/(C8+G8) -> 4
B8: Maatregelen | C8: =2-(COUNTIF(B9:B10,"")) -> 2 | G8: =2-(COUNTIF(F9:F10,"")) -> 2 | J8: =IF(J7=0,"Geen",IF(J7<=1.9,"MAG",IF(J7<=3.9,"GEWENST",IF(J7>3.9,"VEREIST")))) -> VEREIST
B9: ='Concern Maatregelen'!B9 -> Dataminimalisatie op basis van doelbinding. | C9: 4 | E9: =IF(C9=1,0,IF(C9=2,1,IF(C9=3,3,IF(C9=4,5,0)))) -> 5 | F9: ='Concern Maatregelen'!E9 -> Beveiligen van data tegen lekken en hacken. | G9: 4 | I9: =IF(G9=1,0,IF(G9=2,1,IF(G9=3,3,IF(G9=4,5,0)))) -> 5
B10: ='Concern Maatregelen'!B10 -> Zorgen voor voldoende kwaliteit van data. | C10: 4 | E10: =IF(C10=1,0,IF(C10=2,1,IF(C10=3,3,IF(C10=4,5,0)))) -> 5 | F10: ='Concern Maatregelen'!E10 -> Authenticatie en autorisatie op basis van least privileges (minimale rechten). | G10: 2 | I10: =IF(G10=1,0,IF(G10=2,1,IF(G10=3,3,IF(G10=4,5,0)))) -> 1
E11: =IF(C11=2,0,C11) -> 0 | I11: =IF(G11=2,0,G11) -> 0
B18: Maak een keuze
B19: LAAG
B20: GEMIDDELD
B21: HOOG
B22: Maak een keuze
B23: LAAG
B24: HOOG
B25: Maak een keuze
B26: MAG
B27: GEWENST
B28: VEREIST

Sheet Gebruik
D1: Factor | H1: Factor
H2: =Wegingsfactoren!H30 -> 20 | I2: =SUM(E4:E7)+SUM(I4:I7) -> 40 | J2: =I2/Wegingsfactoren!H30 -> 2
B3: Impact verhogende aspecten | F3: Kans verhogende aspecten | J3: =IF(Wegingsfactoren!H30=0,"Wegings-factoren zijn niet gevuld",IF(J2=0,"Geen",IF(J2<=1.49,"LAAG",IF(J2<=2.09,"GEMIDDELD",IF(J2>2.09,"HOOG"))))) -> GEMIDDELD
B4: ='Onderhoud teksten Impact&Kans'!B26 -> De mate waarin het gebruik verenigbaar is met het oorspronkelijke verzamel doel (verenigbaar = laag, niet verenigbaar = hoog). | C4: 2 | D4: =Wegingsfactoren!D26 -> 1 | E4: =IF(C4=1,0,IF(C4=2,1*D4,IF(C4=3,3*D4,))) -> 1 | F4: ='Onderhoud teksten Impact&Kans'!D26 -> De mate waarin de gegevens een beeld geven van betrokkene (algemeen beeld = laag, gedetailleerd beeld = hoog). | G4: 3 | H4: =Wegingsfactoren!G26 -> 5 | I4: =IF(G4=1,0,IF(G4=2,1*H4,IF(G4=3,3*H4,))) -> 15
B5: ='Onderhoud teksten Impact&Kans'!B27 -> De mate waarin de kwaliteit van de gegevens (actueel, juist, volledig) is gewaarborgd (gewaarborgd = laag, niet gewaarborgd = hoog). | C5: 2 | D5: =Wegingsfactoren!D27 -> 1 | E5: =IF(C5=1,0,IF(C5=2,1*D5,IF(C5=3,3*D5,))) -> 1 | F5: ='Onderhoud teksten Impact&Kans'!D27 -> De mate waarin beoordeling op geautomatiseerde wijze tot stand komt (met menselijke tussenkomst = laag, deels geautomatiseerd = gemiddeld, volledig geautomatiseerd = hoog). | G5: 2 | H5: =Wegingsfactoren!G27 -> 1 | I5: =IF(G5=1,0,IF(G5=2,1*H5,IF(G5=3,2*H5,IF(G5=4,3*H5)))) -> 1
B6: ='Onderhoud teksten Impact&Kans'!B28 -> De mate waarin beslissingen over betrokkenen genomen worden op basis van de gegevens (geen beslissing = laag, wel beslissing = hoog). | C6: 3 | D6: =Wegingsfactoren!D28 -> 5 | E6: 15 | F6: ='Onderhoud teksten Impact&Kans'!D28 -> De mate waarin gegevens binnen de organisatie toegankelijk zijn (binnen afdeling of directie = laag, binnen departement = gemiddeld, binnen de Rijksdienst/overheid = hoog). | G6: 2 | H6: =Wegingsfactoren!G28 -> 1 | I6: =IF(G6=1,0,IF(G6=2,1*H6,IF(G6=3,2*H6,IF(G6=4,3*H6)))) -> 1
B7: ='Onderhoud teksten Impact&Kans'!B29 -> De mate waarin de kwaliteit van de dienstverlening, interne bedrijfsvoering en besluitvorming afhankelijk is van de gegevens (niet afhankelijk = laag, afhankelijk = hoog). | C7: 2 | D7: =Wegingsfactoren!D29 -> 5 | E7: 5 | F7: ='Onderhoud teksten Impact&Kans'!D29 -> De mate waarin gegevens buiten de organisatie toegankelijk zijn (niet = laag, binnen de Rijksoverheid = gemiddeld, buiten de Rijksdienst/overheid = hoog). | G7: 2 | H7: =Wegingsfactoren!G29 -> 1 | I7: 1
I8: =SUM(E10:E13,I10:I13) -> 31 | J8: =I8/(C9+G9) -> 4.428571429
B9: Maatregelen | C9: =4-(COUNTIF(B10:B13,"")) -> 4 | G9: =4-(COUNTIF(F10:F13,"")) -> 3 | J9: =IF(J8=0,"Geen",IF(J8<=1.9,"MAG",IF(J8<=3.9,"GEWENST",IF(J8>3.9,"VEREIST")))) -> VEREIST
B10: ='Concern Maatregelen'!B26 -> Betrokkene inzage geven in de eigen gegevens en een procedure voor correctie (en verwijdering) inregelen. | C10: 4 | E10: =IF(C10=1,0,IF(C10=2,1,IF(C10=3,3,IF(C10=4,5,0)))) -> 5 | F10: ='Concern Maatregelen'!E26 -> Geautomatiseerde beoordeling op basis van profielen is hulpmiddel, geen grond voor besluit of handeling waarbij iemand in aanmerkelije mate wordt geraakt (vereist). | G10: 4 | I10: =IF(G10=1,0,IF(G10=2,1,IF(G10=3,3,IF(G10=4,5,0)))) -> 5
B11: ='Concern Maatregelen'!B27 -> Zorgen voor klachtenprocedure. | C11: 4 | E11: =IF(C11=1,0,IF(C11=2,1,IF(C11=3,3,IF(C11=4,5,0)))) -> 5 | F11: ='Concern Maatregelen'!E27 -> Authenticatie en autorisatie op basis van least privileges. | G11: 2 | I11: =IF(G11=1,0,IF(G11=2,1,IF(G11=3,3,IF(G11=4,5,0)))) -> 1
B12: ='Concern Maatregelen'!B28 -> Informeren betrokkene over herkomst en gebruik gegevens. | C12: 4 | E12: 5 | F12: ='Concern Maatregelen'!E28 -> Privacybeleid en werkinstructies voor verwerkers van persoonsgegevens. | G12: 4 | I12: 5
B13: ='Concern Maatregelen'!B29 -> Zorgen voor een goede AO die kwaliteit van de data volgens afgesproken norm garandeert. | C13: 4 | E13: 5
B18: Maak een keuze
B19: LAAG
B20: GEMIDDELD
B21: HOOG
B22: Maak een keuze
B23: LAAG
B24: HOOG
B25: Maak een keuze
B26: MAG
B27: GEWENST
B28: VEREIST

Sheet Bewaren en vernietigen
D1: Factor | H1: Factor | J1: Indicatie
I2: =SUM(E4:E7)+SUM(I4:I7) -> 19 | J2: =I2/Wegingsfactoren!H36 -> 2.111111111
B3: Impact verhogende aspecten | F3: Kans verhogende aspecten | J3: =IF(Wegingsfactoren!H36=0,"Wegings-factoren zijn niet gevuld",IF(J2=0,"Geen",IF(J2<=1.49,"LAAG",IF(J2<=2.28,"GEMIDDELD",IF(J2>2.28,"HOOG"))))) -> GEMIDDELD
B4: ='Onderhoud teksten Impact&Kans'!B32 -> De mate waarin gegevens geanonimiseerd kunnen worden (anonimiseerbaar = laag, niet anoniem = hoog). | C4: 3 | D4: =Wegingsfactoren!D32 -> 5 | E4: =IF(C4=1,0,IF(C4=2,1*D4,IF(C4=3,3*D4,))) -> 15 | F4: ='Onderhoud teksten Impact&Kans'!D32 -> De mate waarin er duidelijkheid is over de bewaartermijnen (duidelijk = laag, onduidelijk = hoog). | G4: 2 | H4: =Wegingsfactoren!G32 -> 1 | I4: =IF(G4=1,0,IF(G4=2,1*H4,IF(G4=3,3*H4,))) -> 1
F5: ='Onderhoud teksten Impact&Kans'!D33 -> De mate waarin het mogelijk is om gegevens (of delen daarvan) geautomatiseerd te verwijderen/vernietigen (mogelijk = laag, onmogelijk = hoog). | G5: 2 | H5: =Wegingsfactoren!G33 -> 3 | I5: 3
I8: =SUM(E10:E13,I10:I13) -> 11 | J8: =I8/(C9+G9) -> 2.75
B9: Maatregelen | C9: =4-(COUNTIF(B10:B13,"")) -> 2 | G9: =4-(COUNTIF(F10:F13,"")) -> 2 | J9: =IF(J8=0,"Geen",IF(J8<=1.9,"MAG",IF(J8<=3.9,"GEWENST",IF(J8>3.9,"VEREIST")))) -> GEWENST
B10: ='Concern Maatregelen'!B10 -> Zorgen voor voldoende kwaliteit van data. | C10: 4 | E10: =IF(C10=1,0,IF(C10=2,1,IF(C10=3,3,IF(C10=4,5,0)))) -> 5 | F10: ='Concern Maatregelen'!E32 -> Stel vooraf duidelijke bewaar termijnen vast en handel daarna. | G10: 4 | I10: =IF(G10=1,0,IF(G10=2,1,IF(G10=3,3,IF(G10=4,5,0)))) -> 5
B11: ='Concern Maatregelen'!B11 -> Plaats data binnen de eigen organisatie. | C11: 2 | E11: =IF(C11=1,0,IF(C11=2,1,IF(C11=3,3,IF(C11=4,5,0)))) -> 1 | F11: ='Concern Maatregelen'!E33 -> Indien vernietigen niet mogelijk is beperk de toegang tot strikt noodzakelijke. | G11: 1 | I11: =IF(G11=1,0,IF(G11=2,1,IF(G11=3,3,IF(G11=4,5,0)))) -> 0
B18: Maak een keuze
B19: LAAG
B20: GEMIDDELD
B21: HOOG
B22: Maak een keuze
B23: LAAG
B24: HOOG
B25: Maak een keuze
B26: MAG
B27: GEWENST
B28: VEREIST

Sheet Beveiliging
D1: Factor | H1: Factor | J1: Indicatie
I2: =SUM(E4:E7)+SUM(I4:I7) -> 4 | J2: =I2/Wegingsfactoren!H42 -> 1
B3: Impact verhogende aspecten | F3: Kans verhogende aspecten | J3: =IF(Wegingsfactoren!H42=0,"Wegings-factoren zijn niet gevuld",IF(J2=0,"Geen",IF(J2<=1.49,"LAAG",IF(J2<=2.28,"GEMIDDELD",IF(J2>2.28,"HOOG"))))) -> LAAG
B4: ='Onderhoud teksten Impact&Kans'!B38 -> De mate waarin integriteit van de data gewaarborgd is (gewaarborgd = laag, niet gewaarborgd = hoog). | C4: 2 | D4: =Wegingsfactoren!D38 -> 1 | E4: =IF(C4=1,0,IF(C4=2,1*D4,IF(C4=3,3*D4,))) -> 1 | F4: ='Onderhoud teksten Impact&Kans'!D38 -> De mate van inpasbaarheid in een bestaande authenticatie/autorisatie infrastructuur (inpasbaar = laag, niet inpasbaar = hoog). | G4: 2 | H4: =Wegingsfactoren!G38 -> 1 | I4: =IF(G4=1,0,IF(G4=2,1*H4,IF(G4=3,3*H4,))) -> 1
B5: ='Onderhoud teksten Impact&Kans'!B39 -> De mate waarin de vertrouwelijkheid gewaarborgd is (gewaarborgd = laag, niet gewaarborgd = hoog). | C5: 2 | D5: =Wegingsfactoren!D39 -> 1 | E5: 1 | F5: ='Onderhoud teksten Impact&Kans'!D39 -> De mate waarin implemenatie plaatsvindt op een omgeving die voldoet aan de veiligheidsnormen van de organisatie (voldoet = laag, niet voldoet = hoog). | G5: 2 | H5: =Wegingsfactoren!G39 -> 1 | I5: 1
I8: =SUM(E10:E13,I10:I13) -> 9 | J8: =I8/(C9+G9) -> 1.8
B9: Maatregelen | C9: =4-(COUNTIF(B10:B13,"")) -> 3 | G9: =4-(COUNTIF(F10:F13,"")) -> 2 | J9: =IF(J8=0,"Geen",IF(J8<=1.9,"MAG",IF(J8<=3.9,"GEWENST",IF(J8>3.9,"VEREIST")))) -> MAG
B10: ='Concern Maatregelen'!B38 -> Autorisatie (muteren en inzage) op basis van least privileges. Toegang op basis van “Need to know”. | C10: 2 | E10: =IF(C10=1,0,IF(C10=2,1,IF(C10=3,3,IF(C10=4,5,0)))) -> 1 | F10: ='Concern Maatregelen'!E38 -> Sluit aan op bestaande authenticatie en autorisatie infrastructuur. Pas waar nodig 2-factor authenticatie toe. Definieer autorisatierollen op basis van least privileges. | G10: 2 | I10: =IF(G10=1,0,IF(G10=2,1,IF(G10=3,3,IF(G10=4,5,0)))) -> 1
B11: ='Concern Maatregelen'!B39 -> Pas waar mogelijk self-service toe. | C11: 2 | E11: =IF(C11=1,0,IF(C11=2,1,IF(C11=3,3,IF(C11=4,5,0)))) -> 1 | F11: ='Concern Maatregelen'!E39 -> Stel beveiligingseisen aan bewerkers. | G11: 4 | I11: =IF(G11=1,0,IF(G11=2,1,IF(G11=3,3,IF(G11=4,5,0)))) -> 5
B12: ='Concern Maatregelen'!B40 -> Autorisatie op basis van least privileges. | C12: 2 | E12: 1
B18: Maak een keuze
B19: LAAG
B20: GEMIDDELD
B21: HOOG
B22: Maak een keuze
B23: LAAG
B24: HOOG
B25: Maak een keuze
B26: MAG
B27: GEWENST
B28: VEREIST

Sheet Uitleg
D1: MvE

Sheet Basisinfo
B3: Onderwerp | C3: Toelichting | D3: Antwoord
A4: 1 | B4: Verantwoordelijke | C4: De verantwoordelijke is degene die het doel en de middelen voor de verwerking vaststelt. Dit kan een afdeling of bestuursorgaan of een natuurlijk persoon zijn. | D4: CvB
A5: 2 | B5: Bewerker | C5: Een bewerker is een persoon of organisatie aan wie de verantwoordelijke de verwerking van persoonsgegevens heeft uitbesteed. Ook als er alleen sprake is van opslag van persoonsgegevens in de cloud is er al sprake van een bewerker (i.c. de hosting partij). | D5: Hrnu
A6: 3 | B6: Naam verwerking | C6: Hier dient de verwerking van persoonsgegevens omschreven te worden. Dat kan door de naam van de verwerking te vermelden zoals deze binnen de organisatie(s) van de verantwoordelijke(n) bekend is, bijvoorbeeld ‘personeelsadministratie’ of ‘klachtenregistratie’. | D6: Dienst HRM, afdeling salarisadministratie
A7: 4 | B7: Doel van verwerking | C7: Een precieze en duidelijke omschrijving van het doel (of de samenhangende doeleinden) van de verwerking is van belang, omdat aan de hand van het doel van de verwerking de hoeveelheid, de soort, de kwaliteit en de bewaartermijn van de gegevens worden getoetst. | D7: Salarisadministratie, Self service (voor medewerkers), Gesprekscyclus en management informatie
A8: 5 | B8: Grondslag voor verwerking | C8: De WBP kent een beperkt aantal grondslagen op basis waarvan persoonsgegevens verwerkt mogen worden: 1. Toestemming 2. Overeenkomst 3. Wettelijke verplichting 4. Vitaal belang 5. Publiekrechtelijke taak 6. Gerechtvaardigd belang | D8: 2 en 3
A9: 6 | B9: Categorieën van betrokkenen | C9: Hier dient u aan te geven over welke (groepen van ) personen gegevens worden verzameld. Bijvoorbeeld studenten, medewerkers, alumni,… | D9: Personeelsleden, inhuurkrachten en tijdelijke medewerkers.
A10: 7 | B10: Gegevens, verzameldoel en bewaartermijnen | C10: Per categorie van betrokkenen dient aangegeven te worden welke (categorieën van) gegevens verwerkt worden en per (categorie van) gegeven(s) dient aan gegeven te worden met welk doel deze verwerkt wordt en hoelang ze bewaard blijven. | D10: Nader in te vullen
A11: 8 | B11: Gebruikers/ ontvangers | C11: Degene aan wie de persoonsgegevens worden verstrekt (of toegang hebben tot die gegevens). Bijvoorbeeld degene die belast is met de verwerking ervan, een leidinggevende, een extern orgaan als de belastingdienst. | D11: Leidinggevenden, HR consulenten, belastingsdienst en accountant.

Sheet Wegingsfactoren
B1: Impact-verhogende aspecten | C1: factor | E1: Kans-verhogende aspecten | F1: factor | H1: Totale wegings- factor
B2: Type project
B3: ='Onderhoud teksten Impact&Kans'!B3 -> Omvang van projecten met een ICT component (tussen de < €5 mln = laag risico, > €5 en < €20 mln = gemiddeld, > €20 mln = hoog). | C3: 2 | D3: =IF(C3=1,0,IF(C3=2,1,IF(C3=3,3,IF(C3=4,5,)))) -> 1 | E3: ='Onderhoud teksten Impact&Kans'!D3 -> Onvoldoende duidelijkheid over verantwoordelijkheid voor data (duidelijkheid = laag, onduidelijkheid = hoog). | F3: 2 | G3: =IF(F3=1,0,IF(F3=2,1,IF(F3=3,3,IF(F3=4,5,)))) -> 1
B4: ='Onderhoud teksten Impact&Kans'!B4 -> Publieke belangstelling (select gezelschap = laag, lokale pers = gemiddeld, landelijke pers = hoog). | C4: 2 | D4: =IF(C4=1,0,IF(C4=2,1,IF(C4=3,3,IF(C4=4,5,)))) -> 1 | E4: ='Onderhoud teksten Impact&Kans'!D4 -> Onvoldoende onderbouwing van data noodzaak (veel onderbouwing = laag, geen onderbouwing = hoog). | F4: 2 | G4: =IF(F4=1,0,IF(F4=2,1,IF(F4=3,3,IF(F4=4,5,)))) -> 1
D5: =IF(C5=1,0,IF(C5=2,1,IF(C5=3,3,IF(C5=4,5,)))) -> 0 | E5: ='Onderhoud teksten Impact&Kans'!D5 -> Gebruik van nieuwe technologieën (marginaal of geen = laag, proven technology = gemiddeld, cutting edge = hoog). | F5: 2 | G5: 1
D6: 0 | E6: ='Onderhoud teksten Impact&Kans'!D6 -> Betrokkenheid meerdere (ook externe) partijen (geen = laag, partijen uit mantelcontract = gemiddeld, partijen buiten het contract = hoog). | F6: 3 | G6: 3
C7: =SUM(D3:D6) -> 2 | D7: 1 | F7: =SUM(G3:G6) -> 6 | H7: =C7+F7 -> 8 | I7: =IF(H7>=1,1,0) -> 1
B8: Aard van de gegevens
B9: ='Onderhoud teksten Impact&Kans'!B9 -> Gebruik bijzondere persoonsgegevens (geen = laag, gemiddeld, veel = hoog). | C9: 3 | D9: 3 | E9: ='Onderhoud teksten Impact&Kans'!D9 -> Hoeveelheid personen waarover data verzameld wordt (< 100 personen = laag, > 100 en < 10.000 personen = gemiddeld, > 10.000 personen = hoog). | F9: 3 | G9: 3
B10: ='Onderhoud teksten Impact&Kans'!B10 -> Hoeveelheid identificerende gegevens (weinig = laag, gemiddeld, veel = hoog). | C10: 4 | D10: 5 | E10: ='Onderhoud teksten Impact&Kans'!D10 -> Aantal personen/instanties dat toegang heeft tot de informatie (op need to know basis = laag, bovenmatig = gemiddeld, onbekend of onduidelijk = hoog). | F10: 2 | G10: 1
B11: ='Onderhoud teksten Impact&Kans'!B11 -> Gegevens kunnen basis zijn voor beoordeling van gedrag of prestatie van het individu (nee = laag, ja = hoog). | C11: 4 | D11: 5 | E11: ='Onderhoud teksten Impact&Kans'!D11 -> Onvoldoende beveiliging van de data (aantoonbaar voldoende = laag, marginaal maar niet getoetst = gemiddeld, onbekend of onvoldoende = hoog). | F11: 2 | G11: 1
B12: ='Onderhoud teksten Impact&Kans'!B12 -> Gegevens kunnen gebruikt worden voor identiteitsfraude (nee = laag, ja = hoog). | C12: 4 | D12: 5
C13: =SUM(D9:D12) -> 18 | F13: =SUM(G9:G12) -> 5 | H13: =C13+F13 -> 23 | I13: =IF(H13>=1,1,0) -> 1
B14: Betrokken partijen
B15: ='Onderhoud teksten Impact&Kans'!B15 -> Partijen van buiten de EU (landen binnen Europese Economische Ruimte (EER) (binnen Europa = laag, buiten Europa = hoog). | C15: 2 | D15: 1 | E15: ='Onderhoud teksten Impact&Kans'!D15 -> Hoeveelheid intern verwerkende partijen (enkele partij = laag, een paar = gemiddeld, meerdere partijen = hoog). | F15: 3 | G15: 3
E16: ='Onderhoud teksten Impact&Kans'!D16 -> Betrokkenheid van externe verwerkende partijen (enkele partij = laag, een paar = gemiddeld, meerdere partijen = hoog). | F16: 2 | G16: 1
E17: ='Onderhoud teksten Impact&Kans'!D17 -> Verschllende wettelijke regimes van betrokken partijen (vergelijkbaar of beter = laag, anders = hoog). | F17: 2 | G17: 1
C19: =SUM(D15:D18) -> 1 | F19: =SUM(G15:G18) -> 5 | H19: 6 | I19: 1
B20: Verzamelen
B21: ='Onderhoud teksten Impact&Kans'!B21 -> De mate waarin het individu op de hoogte is/kan zijn dat informatie over hem verzameld wordt (op de hoogte = laag, niet op de hoogte = hoog). | C21: 2 | D21: 1 | E21: ='Onderhoud teksten Impact&Kans'!D21 -> De veiligheid van de methode van verzamelen (afluisterbaar, cookies,..) (afgeschermde fysieke ruimte en/of versleutelde internet verbinding = laag, geen veiligheidsmaatregelen = hoog). | F21: 2 | G21: 1
B22: ='Onderhoud teksten Impact&Kans'!B22 -> De mate waarin het individu invloed kan uitoefenen op de gegevens die over hem verzameld worden (invloed = laag, geen of nauwelijks invloed = hoog). | C22: 2 | D22: 1
C24: =SUM(D21:D23) -> 2 | F24: =SUM(G21:G23) -> 1 | H24: 3 | I24: 1
B25: Gebruik
B26: ='Onderhoud teksten Impact&Kans'!B26 -> De mate waarin het gebruik verenigbaar is met het oorspronkelijke verzamel doel (verenigbaar = laag, niet verenigbaar = hoog). | C26: 2 | D26: 1 | E26: ='Onderhoud teksten Impact&Kans'!D26 -> De mate waarin de gegevens een beeld geven van betrokkene (algemeen beeld = laag, gedetailleerd beeld = hoog). | F26: 4 | G26: 5
B27: ='Onderhoud teksten Impact&Kans'!B27 -> De mate waarin de kwaliteit van de gegevens (actueel, juist, volledig) is gewaarborgd (gewaarborgd = laag, niet gewaarborgd = hoog). | C27: 2 | D27: 1 | E27: ='Onderhoud teksten Impact&Kans'!D27 -> De mate waarin beoordeling op geautomatiseerde wijze tot stand komt (met menselijke tussenkomst = laag, deels geautomatiseerd = gemiddeld, volledig geautomatiseerd = hoog). | F27: 2 | G27: 1
B28: ='Onderhoud teksten Impact&Kans'!B28 -> De mate waarin beslissingen over betrokkenen genomen worden op basis van de gegevens (geen beslissing = laag, wel beslissing = hoog). | C28: 4 | D28: 5 | E28: ='Onderhoud teksten Impact&Kans'!D28 -> De mate waarin gegevens binnen de organisatie toegankelijk zijn (binnen afdeling of directie = laag, binnen departement = gemiddeld, binnen de Rijksdienst/overheid = hoog). | F28: 2 | G28: 1
B29: ='Onderhoud teksten Impact&Kans'!B29 -> De mate waarin de kwaliteit van de dienstverlening, interne bedrijfsvoering en besluitvorming afhankelijk is van de gegevens (niet afhankelijk = laag, afhankelijk = hoog). | C29: 4 | D29: 5 | E29: ='Onderhoud teksten Impact&Kans'!D29 -> De mate waarin gegevens buiten de organisatie toegankelijk zijn (niet = laag, binnen de Rijksoverheid = gemiddeld, buiten de Rijksdienst/overheid = hoog). | F29: 2 | G29: 1
C30: =SUM(D26:D29) -> 12 | F30: =SUM(G26:G29) -> 8 | H30: 20 | I30: 1
B31: Bewaren en vernietigen
B32: ='Onderhoud teksten Impact&Kans'!B32 -> De mate waarin gegevens geanonimiseerd kunnen worden (anonimiseerbaar = laag, niet anoniem = hoog). | C32: 4 | D32: 5 | E32: ='Onderhoud teksten Impact&Kans'!D32 -> De mate waarin er duidelijkheid is over de bewaartermijnen (duidelijk = laag, onduidelijk = hoog). | F32: 2 | G32: 1
E33: ='Onderhoud teksten Impact&Kans'!D33 -> De mate waarin het mogelijk is om gegevens (of delen daarvan) geautomatiseerd te verwijderen/vernietigen (mogelijk = laag, onmogelijk = hoog). | F33: 3 | G33: 3
C36: =SUM(D32:D35) -> 5 | F36: =SUM(G32:G35) -> 4 | H36: 9 | I36: 1
B37: Beveiliging
B38: ='Onderhoud teksten Impact&Kans'!B38 -> De mate waarin integriteit van de data gewaarborgd is (gewaarborgd = laag, niet gewaarborgd = hoog). | C38: 2 | D38: 1 | E38: ='Onderhoud teksten Impact&Kans'!D38 -> De mate van inpasbaarheid in een bestaande authenticatie/autorisatie infrastructuur (inpasbaar = laag, niet inpasbaar = hoog). | F38: 2 | G38: 1
B39: ='Onderhoud teksten Impact&Kans'!B39 -> De mate waarin de vertrouwelijkheid gewaarborgd is (gewaarborgd = laag, niet gewaarborgd = hoog). | C39: 2 | D39: 1 | E39: ='Onderhoud teksten Impact&Kans'!D39 -> De mate waarin implemenatie plaatsvindt op een omgeving die voldoet aan de veiligheidsnormen van de organisatie (voldoet = laag, niet voldoet = hoog). | F39: 2 | G39: 1
C42: =SUM(D38:D39) -> 2 | F42: =SUM(G38:G41) -> 2 | H42: 4 | I42: 1
H43: =IF(I43>0,"Vast-gesteld","") -> Vast-gesteld | I43: =SUM(I7:I42) -> 7
B45: Factor 3 keuzen | C45: Maak een keuze
C46: 1
C47: 3
C48: 5
B51: Factor 2 keuzen | C51: 1
C53: 5

Sheet Concern Maatregelen
B1: Maatregelen ter verlaging van impact | C1: Toepassen | E1: Maatregelen ter verlaging van kans | F1: Toepassen
B2: Type project | C2: =4-(COUNTIF(B3:B6,"")) -> 3 | F2: =4-(COUNTIF(E3:E6,"")) -> 3
B3: Mogelijk definiëren van deelprojecten met duidelijke afbakening. | C3: 2 | D3: =IF(C3=1,0,IF(C3=2,0,C3)) -> 0 | E3: Benoem aan wie na afloop van het project de data worden overgedragen. | F3: 3 | G3: =IF(F3=1,0,IF(F3=1,0,F3)) -> 3
B4: Communicatiestrategie binnen de organisatie op het juiste niveau bepalen. | C4: 2 | D4: =IF(C4=1,0,IF(C4=2,0,C4)) -> 0 | E4: Per data element doel omschrijven. | F4: 3 | G4: =IF(F4=1,0,IF(F4=1,0,F4)) -> 3
B5: Zorgvuldige informatievoorziening over het project naar buiten. | C5: 3 | D5: 3 | E5: Afspraken met derde partijen contractueel vastleggen (juridisch normen kader kan hierbij helpen). | F5: 3 | G5: 3
H6: =SUM(D3:D5,G3:G5) -> 12
B8: Aard van de gegevens | C8: =4-(COUNTIF(B9:B12,"")) -> 3 | F8: =4-(COUNTIF(E9:E12,"")) -> 2
B9: Dataminimalisatie op basis van doelbinding. | C9: 3 | D9: 3 | E9: Beveiligen van data tegen lekken en hacken. | F9: 3 | G9: 3
B10: Zorgen voor voldoende kwaliteit van data. | C10: 3 | D10: 3 | E10: Authenticatie en autorisatie op basis van least privileges (minimale rechten). | F10: 2 | G10: 2
B11: Plaats data binnen de eigen organisatie. | C11: 2 | D11: 0 | H11: =SUM(D9:D11,G9:G10) -> 11
B14: Betrokken partijen | C14: =4-(COUNTIF(B15:B18,"")) -> 1 | F14: =4-(COUNTIF(E15:E18,"")) -> 3
B15: Bespreken gewenst privacy beleid en gedrag. | C15: 3 | D15: 3 | E15: Bewerkersovereenkomsten, juridisch normenkader. | F15: 3 | G15: 3
E16: Certificering (bijv. ISO 27001). | F16: 2 | G16: 2
E17: Periodieke auditing. | F17: 2 | G17: 2
H18: =SUM(D15,G15:G17) -> 10
B20: Verzamelen | C20: =2-(COUNTIF(B21:B22,"")) -> 2 | F20: =2-(COUNTIF(E21:E22,"")) -> 2
B21: Informeren van betrokkenen over gebruik van gegevens en recht op inzage/wijziging. | C21: 3 | D21: 3 | E21: Beveiligen van communicatie kanalen mbv encryptie technieken (bv https). | F21: 2 | G21: 2
B22: Mogelijk inregelen van opt-in/opt-out. | C22: 3 | D22: 3 | E22: Beveiliging tegen hacken en lekken. | F22: 3 | G22: 3
H23: =SUM(D21:D22,G21:G22) -> 11
B25: Gebruik | C25: =4-(COUNTIF(B26:B29,"")) -> 4 | F25: =4-(COUNTIF(E26:E29,"")) -> 3
B26: Betrokkene inzage geven in de eigen gegevens en een procedure voor correctie (en verwijdering) inregelen. | C26: 3 | D26: 3 | E26: Geautomatiseerde beoordeling op basis van profielen is hulpmiddel, geen grond voor besluit of handeling waarbij iemand in aanmerkelije mate wordt geraakt (vereist). | F26: 3 | G26: 3
B27: Zorgen voor klachtenprocedure. | C27: 3 | D27: 3 | E27: Authenticatie en autorisatie op basis van least privileges. | F27: 2 | G27: 2
B28: Informeren betrokkene over herkomst en gebruik gegevens. | C28: 3 | D28: 3 | E28: Privacybeleid en werkinstructies voor verwerkers van persoonsgegevens. | F28: 3 | G28: 3
B29: Zorgen voor een goede AO die kwaliteit van de data volgens afgesproken norm garandeert. | C29: 3 | D29: 3 | H29: =SUM(D26:D29,G26:G28) -> 20
B31: Bewaren en vernietigen | C31: =4-(COUNTIF(B32:B35,"")) -> 2 | F31: =4-(COUNTIF(E32:E35,"")) -> 2
B32: Onderzoekdata en persoonsgegevens die nodig zijn voor management rapportages zoveel mogelijk anonimiseren of geaggregeerd bewaren. | C32: 3 | D32: 3 | E32: Stel vooraf duidelijke bewaar termijnen vast en handel daarna. | F32: 3 | G32: 3
B33: Bewaar alleen dat deel van de verzamelde info over het individu dat echt noodzakelijk is (wettelijke basis of selectielijst). | C33: 3 | D33: 3 | E33: Indien vernietigen niet mogelijk is beperk de toegang tot strikt noodzakelijke. | F33: 3 | G33: 3
H34: =SUM(D32:D33,G32:G33) -> 12
B37: Beveiliging | C37: =4-(COUNTIF(B38:B41,"")) -> 3 | F37: =4-(COUNTIF(E38:E41,"")) -> 2
B38: Autorisatie (muteren en inzage) op basis van least privileges. Toegang op basis van “Need to know”. | C38: 3 | D38: 3 | E38: Sluit aan op bestaande authenticatie en autorisatie infrastructuur. Pas waar nodig 2-factor authenticatie toe. Definieer autorisatierollen op basis van least privileges. | F38: 2 | G38: 2
B39: Pas waar mogelijk self-service toe. | C39: 2 | D39: 0 | E39: Stel beveiligingseisen aan bewerkers. | F39: 3 | G39: 3
B40: Autorisatie op basis van least privileges. | C40: 2 | D40: 0 | H40: =SUM(D38:D40,G38:G39) -> 8
H41: =SUM(H2:H40) -> 84 | I41: =IF(H41>0,"Vast-gesteld","") -> Vast-gesteld
B45: Maak een keuze
B47: VEREIST

Sheet Onderhoud teksten Impact&Kans
B1: Onderstaande teksten worden automatisch overgenomen in het werkblad "Impact en Kans" en in het werkblad "Wegingsfactoren". Risico | D1: Kans
B2: Type project
B3: Omvang van projecten met een ICT component (tussen de < €5 mln = laag risico, > €5 en < €20 mln = gemiddeld, > €20 mln = hoog). | D3: Onvoldoende duidelijkheid over verantwoordelijkheid voor data (duidelijkheid = laag, onduidelijkheid = hoog).
B4: Publieke belangstelling (select gezelschap = laag, lokale pers = gemiddeld, landelijke pers = hoog). | D4: Onvoldoende onderbouwing van data noodzaak (veel onderbouwing = laag, geen onderbouwing = hoog).
D5: Gebruik van nieuwe technologieën (marginaal of geen = laag, proven technology = gemiddeld, cutting edge = hoog).
D6: Betrokkenheid meerdere (ook externe) partijen (geen = laag, partijen uit mantelcontract = gemiddeld, partijen buiten het contract = hoog).
B8: Aard van de gegevens
B9: Gebruik bijzondere persoonsgegevens (geen = laag, gemiddeld, veel = hoog). | D9: Hoeveelheid personen waarover data verzameld wordt (< 100 personen = laag, > 100 en < 10.000 personen = gemiddeld, > 10.000 personen = hoog).
B10: Hoeveelheid identificerende gegevens (weinig = laag, gemiddeld, veel = hoog). | D10: Aantal personen/instanties dat toegang heeft tot de informatie (op need to know basis = laag, bovenmatig = gemiddeld, onbekend of onduidelijk = hoog).
B11: Gegevens kunnen basis zijn voor beoordeling van gedrag of prestatie van het individu (nee = laag, ja = hoog). | D11: Onvoldoende beveiliging van de data (aantoonbaar voldoende = laag, marginaal maar niet getoetst = gemiddeld, onbekend of onvoldoende = hoog).
B12: Gegevens kunnen gebruikt worden voor identiteitsfraude (nee = laag, ja = hoog).
B14: Betrokken partijen
B15: Partijen van buiten de EU (landen binnen Europese Economische Ruimte (EER) (binnen Europa = laag, buiten Europa = hoog). | D15: Hoeveelheid intern verwerkende partijen (enkele partij = laag, een paar = gemiddeld, meerdere partijen = hoog).
D16: Betrokkenheid van externe verwerkende partijen (enkele partij = laag, een paar = gemiddeld, meerdere partijen = hoog).
D17: Verschllende wettelijke regimes van betrokken partijen (vergelijkbaar of beter = laag, anders = hoog).
B20: Verzamelen
B21: De mate waarin het individu op de hoogte is/kan zijn dat informatie over hem verzameld wordt (op de hoogte = laag, niet op de hoogte = hoog). | D21: De veiligheid van de methode van verzamelen (afluisterbaar, cookies,..) (afgeschermde fysieke ruimte en/of versleutelde internet verbinding = laag, geen veiligheidsmaatregelen = hoog).
B22: De mate waarin het individu invloed kan uitoefenen op de gegevens die over hem verzameld worden (invloed = laag, geen of nauwelijks invloed = hoog).
B25: Gebruik
B26: De mate waarin het gebruik verenigbaar is met het oorspronkelijke verzamel doel (verenigbaar = laag, niet verenigbaar = hoog). | D26: De mate waarin de gegevens een beeld geven van betrokkene (algemeen beeld = laag, gedetailleerd beeld = hoog).
B27: De mate waarin de kwaliteit van de gegevens (actueel, juist, volledig) is gewaarborgd (gewaarborgd = laag, niet gewaarborgd = hoog). | D27: De mate waarin beoordeling op geautomatiseerde wijze tot stand komt (met menselijke tussenkomst = laag, deels geautomatiseerd = gemiddeld, volledig geautomatiseerd = hoog).
B28: De mate waarin beslissingen over betrokkenen genomen worden op basis van de gegevens (geen beslissing = laag, wel beslissing = hoog). | D28: De mate waarin gegevens binnen de organisatie toegankelijk zijn (binnen afdeling of directie = laag, binnen departement = gemiddeld, binnen de Rijksdienst/overheid = hoog).
B29: De mate waarin de kwaliteit van de dienstverlening, interne bedrijfsvoering en besluitvorming afhankelijk is van de gegevens (niet afhankelijk = laag, afhankelijk = hoog). | D29: De mate waarin gegevens buiten de organisatie toegankelijk zijn (niet = laag, binnen de Rijksoverheid = gemiddeld, buiten de Rijksdienst/overheid = hoog).
B31: Bewaren en vernietigen
B32: De mate waarin gegevens geanonimiseerd kunnen worden (anonimiseerbaar = laag, niet anoniem = hoog). | D32: De mate waarin er duidelijkheid is over de bewaartermijnen (duidelijk = laag, onduidelijk = hoog).
D33: De mate waarin het mogelijk is om gegevens (of delen daarvan) geautomatiseerd te verwijderen/vernietigen (mogelijk = laag, onmogelijk = hoog).
B37: Beveiliging
B38: De mate waarin integriteit van de data gewaarborgd is (gewaarborgd = laag, niet gewaarborgd = hoog). | D38: De mate van inpasbaarheid in een bestaande authenticatie/autorisatie infrastructuur (inpasbaar = laag, niet inpasbaar = hoog).
B39: De mate waarin de vertrouwelijkheid gewaarborgd is (gewaarborgd = laag, niet gewaarborgd = hoog). | D39: De mate waarin implemenatie plaatsvindt op een omgeving die voldoet aan de veiligheidsnormen van de organisatie (voldoet = laag, niet voldoet = hoog).

Sheet Startmenu
B2: Privacy Impact Assessment (Bijlage 1: HRnu IBPDOC16)
B4: Titel: | E4: HRnu IBPDOC16 | G4: Uitleg | I4: Invulwerkbladen wegingsfactoren en vaste maatregelen | M4: Onderhoud teksten Impact/Kans en Weging
J5: =Wegingsfactoren!H43 -> Vast-gesteld
B8: Datum: | E8: 2015-12-10 | J8: ='Concern Maatregelen'!I41 -> Vast-gesteld | M8: Scherm- weergave
E11: Stapsgewijze vulling van de PIA t.b.v. het project (per rubriek)

Sheet Resultaat
B1: =CONCATENATE("Totaalresultaat uitgevoerde PIA voor het project: ",Startmenu!E4) -> Totaalresultaat uitgevoerde PIA voor het project: HRnu IBPDOC16 | H1: Uitvoering PIA: | J1: =Startmenu!E8 -> 2015-12-10
B2: Impact verhogende aspecten | C2: Kans verhogende aspecten | D2: Resultaat impact | E2: Resultaat kans | F2: Aspect- resultaat | H2: Maatregelen ter verlaging van impact | J2: Toepassen | L2: Maatregelen ter verlaging van kans | N2: Toepassen
B3: Type project
B4: Omvang | D4: =IF('Type project'!C4=1,"",IF('Type project'!C4=2,"LAAG",IF('Type project'!C4=3,"GEM.",IF('Type project'!C4=4,"HOOG",)))) -> LAAG | F4: ='Type project'!J3 -> LAAG | H4: =IF('Concern Maatregelen'!C3=3,'Concern Maatregelen'!B3,IF('Type project'!C10=3,'Concern Maatregelen'!B3,IF('Type project'!C10=4,'Concern Maatregelen'!B3,""))) -> Mogelijk definiëren van deelprojecten met duidelijke afbakening. | J4: =IF('Concern Maatregelen'!C3=3,"Concern-vereist",IF('Type project'!C10=3,"Gewenst",IF('Type project'!C10=4,"Vereist",""))) -> Gewenst
B5: Publieke belangstelling | D5: =IF('Type project'!C5=1,"",IF('Type project'!C5=2,"LAAG",IF('Type project'!C5=3,"GEM.",IF('Type project'!C5=4,"HOOG",)))) -> LAAG | H5: =IF('Concern Maatregelen'!C4=3,'Concern Maatregelen'!B4,IF('Type project'!C11=3,'Concern Maatregelen'!B4,IF('Type project'!C11=4,'Concern Maatregelen'!B4,""))) -> Communicatiestrategie binnen de organisatie op het juiste niveau bepalen. | J5: =IF('Concern Maatregelen'!C4=3,"Concern-vereist",IF('Type project'!C11=3,"Gewenst",IF('Type project'!C11=4,"Vereist",""))) -> Gewenst
H6: =IF('Concern Maatregelen'!C5=3,'Concern Maatregelen'!B5,IF('Type project'!C12=3,'Concern Maatregelen'!B5,IF('Type project'!C12=4,'Concern Maatregelen'!B5,""))) -> Zorgvuldige informatievoorziening over het project naar buiten. | J6: =IF('Concern Maatregelen'!C5=3,"Concern-vereist",IF('Type project'!C12=3,"Gewenst",IF('Type project'!C12=4,"Vereist",""))) -> Concern-vereist
C7: Onvoldoende duidelijkheid over verantwoordelijkheid voor data | E7: =IF('Type project'!G4=1,"",IF('Type project'!G4=2,"LAAG",IF('Type project'!G4=3,"HOOG",""))) -> LAAG | H7: =IF('Concern Maatregelen'!C6=1,'Concern Maatregelen'!B6,IF(F5="hoog",#REF!,IF(F5="gemiddeld",'Concern Maatregelen'!B6,""))) ->  | L7: =IF('Concern Maatregelen'!F3=3,'Concern Maatregelen'!E3,IF('Type project'!G10=3,'Concern Maatregelen'!E3,IF('Type project'!G10=4,'Concern Maatregelen'!E3,""))) -> Benoem aan wie na afloop van het project de data worden overgedragen. | M7: =IF(F7="hoog",#REF!,IF(Resultaat!F7="gemiddeld",#REF!,"")) ->  | N7: =IF('Concern Maatregelen'!F3=3,"Concern-vereist",IF('Type project'!$G$10=3,"Gewenst",IF('Type project'!$G$10=4,"Vereist",""))) -> Concern-vereist
C8: Onvoldoende onderbouwing van data behoefte | E8: =IF('Type project'!G5=1,"",IF('Type project'!G5=2,"LAAG",IF('Type project'!G5=3,"HOOG",""))) -> LAAG | L8: =IF('Concern Maatregelen'!F4=3,'Concern Maatregelen'!E4,IF('Type project'!G11=3,'Concern Maatregelen'!E4,IF('Type project'!G11=4,'Concern Maatregelen'!E4,""))) -> Per data element doel omschrijven. | M8: =IF(F8="hoog",#REF!,IF(Resultaat!F8="gemiddeld",#REF!,"")) ->  | N8: =IF('Concern Maatregelen'!F4=3,"Concern-vereist",IF('Type project'!$G$10=3,"Gewenst",IF('Type project'!$G$10=4,"Vereist",""))) -> Concern-vereist
C9: Gebruik van nieuwe technologieën | E9: =IF('Type project'!G6=1,"",IF('Type project'!G6=2,"LAAG",IF('Type project'!G6=3,"GEM.",IF('Type project'!G6=4,"HOOG")))) -> LAAG | H9: =IF('Concern Maatregelen'!C8=1,'Concern Maatregelen'!B8,IF(F7="hoog",#REF!,IF(F7="gemiddeld",'Concern Maatregelen'!B8,""))) ->  | L9: =IF('Concern Maatregelen'!F5=3,'Concern Maatregelen'!E5,IF('Type project'!G12=3,'Concern Maatregelen'!E5,IF('Type project'!G12=4,'Concern Maatregelen'!E5,""))) -> Afspraken met derde partijen contractueel vastleggen (juridisch normen kader kan hierbij helpen). | M9: =IF(F9="hoog",#REF!,IF(Resultaat!F9="gemiddeld",#REF!,"")) ->  | N9: =IF('Concern Maatregelen'!F5=3,"Concern-vereist",IF('Type project'!$G$10=3,"Gewenst",IF('Type project'!$G$10=4,"Vereist",""))) -> Concern-vereist
C10: Betrokkenheid meerdere (ook externe)partijen | E10: =IF('Type project'!G7=1,"",IF('Type project'!G7=2,"LAAG",IF('Type project'!G7=3,"GEM.",IF('Type project'!G7=4,"HOOG")))) -> GEM. | M10: =IF(F10="hoog",#REF!,IF(Resultaat!F10="gemiddeld",#REF!,"")) -> 
B11: Aard van de gegevens
B12: Gebruik bijzondere persoonsgegevens | D12: =IF('Aard van gegevens'!C4=1,"",IF('Aard van gegevens'!C4=2,"LAAG",IF('Aard van gegevens'!C4=3,"GEM.",IF('Aard van gegevens'!C4=4,"HOOG",)))) -> HOOG | F12: ='Aard van gegevens'!J3 -> HOOG | H12: =IF('Concern Maatregelen'!C9=3,'Concern Maatregelen'!B9,IF('Aard van gegevens'!C10=3,'Concern Maatregelen'!B9,IF('Aard van gegevens'!C10=4,'Concern Maatregelen'!B9,""))) -> Dataminimalisatie op basis van doelbinding. | I12: =IF(F12="hoog",#REF!,IF(Resultaat!F12="gemiddeld",#REF!,"")) ->  | J12: =IF('Concern Maatregelen'!C9=3,"Concern-vereist",IF('Aard van gegevens'!C10=3,"Gewenst",IF('Aard van gegevens'!C10=4,"Vereist",""))) -> Concern-vereist
B13: Hoeveelheid identificerende gegevens | D13: =IF('Aard van gegevens'!C5=1,"",IF('Aard van gegevens'!C5=2,"LAAG",IF('Aard van gegevens'!C5=3,"GEM.",IF('Aard van gegevens'!C5=4,"HOOG",)))) -> HOOG | H13: =IF('Concern Maatregelen'!C10=3,'Concern Maatregelen'!B10,IF('Aard van gegevens'!C11=3,'Concern Maatregelen'!B10,IF('Aard van gegevens'!C11=4,'Concern Maatregelen'!B10,""))) -> Zorgen voor voldoende kwaliteit van data. | I13: =IF(F13="hoog",#REF!,IF(Resultaat!F13="gemiddeld",#REF!,"")) ->  | J13: =IF('Concern Maatregelen'!C10=3,"Concern-vereist",IF('Aard van gegevens'!C11=3,"Gewenst",IF('Aard van gegevens'!C11=4,"Vereist",""))) -> Concern-vereist
B14: Gegevens kunnen basis zijn voor beoordeling van gedrag of prestatie van het individu | D14: =IF('Aard van gegevens'!C6=1,"",IF('Aard van gegevens'!C6=2,"LAAG",IF('Aard van gegevens'!C6=3,"HOOG",))) -> HOOG | H14: =IF('Concern Maatregelen'!C11=3,'Concern Maatregelen'!B11,IF('Aard van gegevens'!C12=3,'Concern Maatregelen'!B11,IF('Aard van gegevens'!C12=4,'Concern Maatregelen'!B11,""))) ->  | I14: =IF(F14="hoog",#REF!,IF(Resultaat!F14="gemiddeld",#REF!,"")) ->  | J14: =IF('Concern Maatregelen'!C11=3,"Concern-vereist",IF('Aard van gegevens'!C12=3,"Gewenst",IF('Aard van gegevens'!C12=4,"Vereist",""))) -> 
B15: Gegevens kunnen gebruikt worden voor identiteitsfraude | D15: =IF('Aard van gegevens'!C7=1,"",IF('Aard van gegevens'!C7=2,"LAAG",IF('Aard van gegevens'!C7=3,"HOOG",))) -> HOOG | I15: =IF(F15="hoog",#REF!,IF(Resultaat!F15="gemiddeld",#REF!,"")) ->  | J15: =IF(I15=3,"KAN",IF(I15=5,"MOET","")) -> 
C16: Hoeveelheid personen waarover data verzameld wordt. | E16: =IF('Aard van gegevens'!G4=1,"",IF('Aard van gegevens'!G4=2,"LAAG",IF('Aard van gegevens'!G4=3,"GEM.",IF('Aard van gegevens'!G4=4,"HOOG","")))) -> GEM. | I16: =IF(F15="hoog",#REF!,IF(F15="gemiddeld",#REF!,"")) ->  | L16: =IF('Concern Maatregelen'!F9=3,'Concern Maatregelen'!E9,IF('Aard van gegevens'!G10=3,'Concern Maatregelen'!E9,IF('Aard van gegevens'!G10=4,'Concern Maatregelen'!E9,""))) -> Beveiligen van data tegen lekken en hacken. | N16: =IF('Concern Maatregelen'!F9=3,"Concern-vereist",IF('Aard van gegevens'!G10=3,"Gewenst",IF('Aard van gegevens'!G10=4,"Vereist",""))) -> Concern-vereist
C17: Aantal personen/instanties dat toegang heeft tot de informatie | E17: =IF('Aard van gegevens'!G5=1,"",IF('Aard van gegevens'!G5=2,"LAAG",IF('Aard van gegevens'!G5=3,"GEM.",IF('Aard van gegevens'!G5=4,"HOOG","")))) -> LAAG | I17: =IF(F15="hoog",#REF!,IF(F15="gemiddeld",#REF!,"")) ->  | L17: =IF('Concern Maatregelen'!F10=3,'Concern Maatregelen'!E10,IF('Aard van gegevens'!G11=3,'Concern Maatregelen'!E10,IF('Aard van gegevens'!G11=4,'Concern Maatregelen'!E10,""))) ->  | N17: =IF('Concern Maatregelen'!F10=3,"Concern-vereist",IF('Aard van gegevens'!G11=3,"Gewenst",IF('Aard van gegevens'!G11=4,"Vereist",""))) -> 
C18: Onvoldoende beveiliging van de data | E18: =IF('Aard van gegevens'!G6=1,"",IF('Aard van gegevens'!G6=2,"LAAG",IF('Aard van gegevens'!G6=3,"GEM.",IF('Aard van gegevens'!G6=4,"HOOG","")))) -> LAAG | I18: =IF(F18="hoog",#REF!,IF(Resultaat!F18="gemiddeld",#REF!,"")) ->  | N18: =IF(M18=3,"KAN",IF(M18=5,"MOET","")) -> 
B19: Betrokken partijen
B20: Partijen van buiten de EU | D20: =IF('Betrokken partijen'!C4=1,"",IF('Betrokken partijen'!C4=2,"LAAG",IF('Betrokken partijen'!C4=3,"HOOG",""))) -> LAAG | F20: ='Betrokken partijen'!$J$3 -> LAAG | H20: =IF('Concern Maatregelen'!C15=3,'Concern Maatregelen'!B15,IF('Betrokken partijen'!C10=3,'Concern Maatregelen'!B15,IF('Betrokken partijen'!C10=4,'Concern Maatregelen'!B15,""))) -> Bespreken gewenst privacy beleid en gedrag. | I20: =IF(F20="hoog",#REF!,IF(F20="gemiddeld",#REF!,"")) ->  | J20: =IF('Concern Maatregelen'!C15=3,"Concern-vereist",IF('Betrokken partijen'!C10=3,"Gewenst",IF('Betrokken partijen'!C10=4,"Vereist",""))) -> Concern-vereist
C21: Hoeveelheid intern betrokken partijen | E21: =IF('Betrokken partijen'!G4=1,"",IF('Betrokken partijen'!G4=2,"LAAG",IF('Betrokken partijen'!G4=3,"GEM.",IF('Betrokken partijen'!G4=4,"HOOG",)))) -> LAAG | I21: =IF(F21="hoog",#REF!,IF(Resultaat!F21="gemiddeld",#REF!,"")) ->  | L21: =IF('Concern Maatregelen'!F15=3,'Concern Maatregelen'!E15,IF('Betrokken partijen'!G10=3,'Concern Maatregelen'!E15,IF('Betrokken partijen'!G10=4,'Concern Maatregelen'!E15,""))) -> Bewerkersovereenkomsten, juridisch normenkader. | M21: =IF(F21="hoog",#REF!,IF(Resultaat!F21="gemiddeld",#REF!,"")) ->  | N21: =IF('Concern Maatregelen'!F15=3,"Concern-vereist",IF('Betrokken partijen'!G10=3,"Gewenst",IF('Betrokken partijen'!G10=4,"Vereist",""))) -> Concern-vereist
C22: Betrokkenheid van externe partijen | E22: =IF('Betrokken partijen'!G5=1,"",IF('Betrokken partijen'!G5=2,"LAAG",IF('Betrokken partijen'!G5=3,"GEM.",IF('Betrokken partijen'!G5=4,"HOOG",)))) -> GEM. | I22: =IF(F21="hoog",#REF!,IF(F21="gemiddeld",#REF!,"")) ->  | L22: =IF('Concern Maatregelen'!F16=3,'Concern Maatregelen'!E16,IF('Betrokken partijen'!G11=3,'Concern Maatregelen'!E16,IF('Betrokken partijen'!G11=4,'Concern Maatregelen'!E16,""))) -> Certificering (bijv. ISO 27001). | M22: =IF(F22="hoog",#REF!,IF(Resultaat!F22="gemiddeld",#REF!,"")) ->  | N22: =IF('Concern Maatregelen'!F16=3,"Concern-vereist",IF('Betrokken partijen'!G11=3,"Gewenst",IF('Betrokken partijen'!G11=4,"Vereist",""))) -> Gewenst
C23: Jurisdictie van betrokken partijen | E23: =IF('Betrokken partijen'!G6=1,"",IF('Betrokken partijen'!G6=2,"LAAG",IF('Betrokken partijen'!G6=3,"HOOG",))) -> LAAG | I23: =IF(F21="hoog",#REF!,IF(F21="gemiddeld",#REF!,"")) ->  | L23: =IF('Concern Maatregelen'!F17=3,'Concern Maatregelen'!E17,IF('Betrokken partijen'!G12=3,'Concern Maatregelen'!E17,IF('Betrokken partijen'!G12=4,'Concern Maatregelen'!E17,""))) ->  | N23: =IF('Concern Maatregelen'!F17=3,"Concern-vereist",IF('Betrokken partijen'!G12=3,"Gewenst",IF('Betrokken partijen'!G12=4,"Vereist",""))) -> 
B24: Verzamelen
B25: De mate waarin het individu op de hoogte is/kan zijn dat informatie over hem verzameld wordt | D25: =IF(Verzamelen!C4=1,"",IF(Verzamelen!C4=2,"LAAG",IF(Verzamelen!C4=3,"HOOG",))) -> LAAG | F25: =Verzamelen!J3 -> LAAG | H25: =IF('Concern Maatregelen'!C21=3,'Concern Maatregelen'!B21,IF(Verzamelen!C9=3,'Concern Maatregelen'!B21,IF(Verzamelen!C9=4,'Concern Maatregelen'!B21,""))) -> Informeren van betrokkenen over gebruik van gegevens en recht op inzage/wijziging. | I25: =IF(F25="hoog",#REF!,IF(F25="gemiddeld",#REF!,"")) ->  | J25: =IF('Concern Maatregelen'!C21=3,"Concern-vereist",IF(Verzamelen!C9=3,"Gewenst",IF(Verzamelen!C9=4,"Vereist",""))) -> Concern-vereist
B26: De mate waarin het individu invloed kan uitoefenen op de gegevens die over hem verzameld worden | D26: =IF(Verzamelen!C5=1,"",IF(Verzamelen!C5=2,"LAAG",IF(Verzamelen!C5=3,"HOOG",))) -> LAAG | H26: =IF('Concern Maatregelen'!C22=3,'Concern Maatregelen'!B22,IF(Verzamelen!C10=3,'Concern Maatregelen'!B22,IF(Verzamelen!C10=4,'Concern Maatregelen'!B22,""))) -> Mogelijk inregelen van opt-in/opt-out. | I26: =IF(F26="hoog",#REF!,IF(F26="gemiddeld",#REF!,"")) ->  | J26: =IF('Concern Maatregelen'!C22=3,"Concern-vereist",IF(Verzamelen!C10=3,"Gewenst",IF(Verzamelen!C10=4,"Vereist",""))) -> Concern-vereist
C27: De veiligheid van de methode van opvraging (afluisterbaar, cookies,..) | E27: =IF(Verzamelen!G4=1,"",IF(Verzamelen!G4=2,"LAAG",IF(Verzamelen!G4=3,"HOOG",""))) -> LAAG | L27: =IF('Concern Maatregelen'!F21=3,'Concern Maatregelen'!E21,IF(Verzamelen!G9=3,'Concern Maatregelen'!E21,IF(Verzamelen!G9=4,'Concern Maatregelen'!E21,""))) -> Beveiligen van communicatie kanalen mbv encryptie technieken (bv https). | N27: =IF('Concern Maatregelen'!F21=3,"Concern-vereist",IF(Verzamelen!G9=3,"Gewenst",IF(Verzamelen!G9=4,"Vereist",""))) -> Vereist
I28: =IF(F28="hoog",#REF!,IF(Resultaat!F28="gemiddeld",#REF!,"")) ->  | L28: =IF('Concern Maatregelen'!F22=3,'Concern Maatregelen'!E22,IF(Verzamelen!G10=3,'Concern Maatregelen'!E22,IF(Verzamelen!G10=4,'Concern Maatregelen'!E22,""))) -> Beveiliging tegen hacken en lekken. | N28: =IF('Concern Maatregelen'!F22=3,"Concern-vereist",IF(Verzamelen!G10=3,"Gewenst",IF(Verzamelen!G10=4,"Vereist",""))) -> Concern-vereist
B29: Gebruik
B30: De mate waarin het gebruik verenigbaar is met het oorspronkelijke verzamel doel | D30: =IF(Gebruik!C4=1,"",IF(Gebruik!C4=2,"LAAG",IF(Gebruik!C4=3,"HOOG",""))) -> LAAG | F30: =Gebruik!J3 -> GEMIDDELD | H30: =IF('Concern Maatregelen'!C26=3,'Concern Maatregelen'!B26,IF(Gebruik!C10=3,'Concern Maatregelen'!B26,IF(Gebruik!C10=4,'Concern Maatregelen'!B26,""))) -> Betrokkene inzage geven in de eigen gegevens en een procedure voor correctie (en verwijdering) inregelen. | I30: =IF(F30="hoog",#REF!,IF(F30="gemiddeld",#REF!,"")) ->  | J30: =IF('Concern Maatregelen'!C26=3,"Concern-vereist",IF(Gebruik!C10=3,"Gewenst",IF(Gebruik!C10=4,"Vereist",""))) -> Concern-vereist
B31: De mate waarin de kwaliteit van de gegevens (actueel, juist, volledig) is gewaarborgd | D31: =IF(Gebruik!C5=1,"",IF(Gebruik!C5=2,"LAAG",IF(Gebruik!C5=3,"HOOG",""))) -> LAAG | H31: =IF('Concern Maatregelen'!C27=3,'Concern Maatregelen'!B27,IF(Gebruik!C11=3,'Concern Maatregelen'!B27,IF(Gebruik!C11=4,'Concern Maatregelen'!B27,""))) -> Zorgen voor klachtenprocedure. | I31: =IF(F31="hoog",#REF!,IF(F31="gemiddeld",#REF!,"")) ->  | J31: =IF('Concern Maatregelen'!C27=3,"Concern-vereist",IF(Gebruik!C11=3,"Gewenst",IF(Gebruik!C11=4,"Vereist",""))) -> Concern-vereist
B32: De mate waarin beslissingen over betrokkenen genomen worden op basis van de gegevens | D32: =IF(Gebruik!C6=1,"",IF(Gebruik!C6=2,"LAAG",IF(Gebruik!C6=3,"HOOG",""))) -> HOOG | H32: =IF('Concern Maatregelen'!C28=3,'Concern Maatregelen'!B28,IF(Gebruik!C12=3,'Concern Maatregelen'!B28,IF(Gebruik!C12=4,'Concern Maatregelen'!B28,""))) -> Informeren betrokkene over herkomst en gebruik gegevens. | I32: =IF(F32="hoog",#REF!,IF(F32="gemiddeld",#REF!,"")) ->  | J32: =IF('Concern Maatregelen'!C28=3,"Concern-vereist",IF(Gebruik!C12=3,"Gewenst",IF(Gebruik!C12=4,"Vereist",""))) -> Concern-vereist
B33: De mate waarin de kwaliteit van de dienstverlening, interne bedrijfsvoering en besluitvorming afhankelijk is van de gegevens | D33: =IF(Gebruik!C7=1,"",IF(Gebruik!C7=2,"LAAG",IF(Gebruik!C7=3,"HOOG",""))) -> LAAG | H33: =IF('Concern Maatregelen'!C29=3,'Concern Maatregelen'!B29,IF(Gebruik!C13=3,'Concern Maatregelen'!B29,IF(Gebruik!C13=4,'Concern Maatregelen'!B29,""))) -> Zorgen voor een goede AO die kwaliteit van de data volgens afgesproken norm garandeert. | I33: =IF(F33="hoog",#REF!,IF(F33="gemiddeld",#REF!,"")) ->  | J33: =IF('Concern Maatregelen'!C29=3,"Concern-vereist",IF(Gebruik!C13=3,"Gewenst",IF(Gebruik!C13=4,"Vereist",""))) -> Concern-vereist
C34: De mate waarin de gegevens een volledig en juist beeld geven van betrokkene | E34: =IF(Gebruik!G4=1,"",IF(Gebruik!G4=2,"LAAG",IF(Gebruik!G4=3,"HOOG",""))) -> HOOG | L34: =IF('Concern Maatregelen'!F26=3,'Concern Maatregelen'!E26,IF(Gebruik!G10=3,'Concern Maatregelen'!E26,IF(Gebruik!G10=4,'Concern Maatregelen'!E26,""))) -> Geautomatiseerde beoordeling op basis van profielen is hulpmiddel, geen grond voor besluit of handeling waarbij iemand in aanmerkelije mate wordt geraakt (vereist). | N34: =IF('Concern Maatregelen'!F26=3,"Concern-vereist",IF(Gebruik!G10=3,"Gewenst",IF(Gebruik!G10=4,"Vereist",""))) -> Concern-vereist
C35: De mate waarin beoordeling op geautomatiseerde wijze tot stand komt | E35: =IF(Gebruik!G5=1,"",IF(Gebruik!G5=2,"LAAG",IF(Gebruik!G5=3,"GEM.",IF(Gebruik!G5=4,"HOOG","")))) -> LAAG | L35: =IF('Concern Maatregelen'!F27=3,'Concern Maatregelen'!E27,IF(Gebruik!G11=3,'Concern Maatregelen'!E27,IF(Gebruik!G11=4,'Concern Maatregelen'!E27,""))) ->  | N35: =IF('Concern Maatregelen'!F27=3,"Concern-vereist",IF(Gebruik!G11=3,"Gewenst",IF(Gebruik!G11=4,"Vereist",""))) -> 
C36: De mate waarin gegevens binnen de organisatie verspreid worden | E36: =IF(Gebruik!G6=1,"",IF(Gebruik!G6=2,"LAAG",IF(Gebruik!G6=3,"GEM.",IF(Gebruik!G6=4,"HOOG","")))) -> LAAG | L36: =IF('Concern Maatregelen'!F28=3,'Concern Maatregelen'!E28,IF(Gebruik!G12=3,'Concern Maatregelen'!E28,IF(Gebruik!G12=4,'Concern Maatregelen'!E28,""))) -> Privacybeleid en werkinstructies voor verwerkers van persoonsgegevens. | N36: =IF('Concern Maatregelen'!F28=3,"Concern-vereist",IF(Gebruik!G12=3,"Gewenst",IF(Gebruik!G12=4,"Vereist",""))) -> Concern-vereist
C37: De mate waarin gegevens buiten de organisatie verspreid worden | E37: =IF(Gebruik!G7=1,"",IF(Gebruik!G7=2,"LAAG",IF(Gebruik!G7=3,"GEM.",IF(Gebruik!G7=4,"HOOG","")))) -> LAAG
B38: Bewaren en vernietigen
B39: De mate waarin gegevens geanonimiseerd kunnen worden | D39: =IF('Bewaren en vernietigen'!C4=1,"",IF('Bewaren en vernietigen'!C4=2,"LAAG",IF('Bewaren en vernietigen'!C4=3,"HOOG",""))) -> HOOG | F39: ='Bewaren en vernietigen'!J3 -> GEMIDDELD | H39: =IF('Concern Maatregelen'!C32=3,'Concern Maatregelen'!B32,IF('Bewaren en vernietigen'!C10=3,'Concern Maatregelen'!B32,IF('Bewaren en vernietigen'!C10=4,'Concern Maatregelen'!B32,""))) -> Onderzoekdata en persoonsgegevens die nodig zijn voor management rapportages zoveel mogelijk anonimiseren of geaggregeerd bewaren. | I39: =IF(F39="hoog",#REF!,IF(F39="gemiddeld",#REF!,"")) ->  | J39: =IF('Concern Maatregelen'!C32=3,"Concern-vereist",IF('Bewaren en vernietigen'!C10=3,"Gewenst",IF('Bewaren en vernietigen'!C10=4,"Vereist",""))) -> Concern-vereist
H40: =IF('Concern Maatregelen'!C33=3,'Concern Maatregelen'!B33,IF('Bewaren en vernietigen'!C11=3,'Concern Maatregelen'!B33,IF('Bewaren en vernietigen'!C11=4,'Concern Maatregelen'!B33,""))) -> Bewaar alleen dat deel van de verzamelde info over het individu dat echt noodzakelijk is (wettelijke basis of selectielijst). | I40: =IF(F40="hoog",#REF!,IF(F40="gemiddeld",#REF!,"")) ->  | J40: =IF('Concern Maatregelen'!C33=3,"Concern-vereist",IF('Bewaren en vernietigen'!C11=3,"Gewenst",IF('Bewaren en vernietigen'!C11=4,"Vereist",""))) -> Concern-vereist
C41: De mate waarin er duidelijkheid is over de bewaartermijnen | E41: =IF('Bewaren en vernietigen'!G4=1,"",IF('Bewaren en vernietigen'!G4=2,"LAAG",IF('Bewaren en vernietigen'!G4=3,"HOOG.",""))) -> LAAG | L41: =IF('Concern Maatregelen'!F32=3,'Concern Maatregelen'!E32,IF('Bewaren en vernietigen'!G10=3,'Concern Maatregelen'!E32,IF('Bewaren en vernietigen'!G10=4,'Concern Maatregelen'!E32,""))) -> Stel vooraf duidelijke bewaar termijnen vast en handel daarna. | N41: =IF('Concern Maatregelen'!F32=3,"Concern-vereist",IF('Bewaren en vernietigen'!G10=3,"Gewenst",IF('Bewaren en vernietigen'!G10=4,"Vereist",""))) -> Concern-vereist
C42: De mate waarin het mogelijk is om gegevens (of delen daarvan) geautomatiseerd te verwijderen/vernietigen | E42: =IF('Bewaren en vernietigen'!G5=1,"",IF('Bewaren en vernietigen'!G5=2,"LAAG",IF('Bewaren en vernietigen'!G5=3,"HOOG.",""))) -> LAAG | H42: =IF('Concern Maatregelen'!C34=1,'Concern Maatregelen'!B34,IF(F42="hoog",#REF!,IF(F42="gemiddeld",#REF!,""))) ->  | I42: =IF(F40="hoog",#REF!,IF(F40="gemiddeld",#REF!,"")) ->  | J42: =IF('Concern Maatregelen'!C34=1,"MOET",IF(I42=3,"KAN",IF(I42=5,"MOET",""))) ->  | L42: =IF('Concern Maatregelen'!F33=3,'Concern Maatregelen'!E33,IF('Bewaren en vernietigen'!G11=3,'Concern Maatregelen'!E33,IF('Bewaren en vernietigen'!G11=4,'Concern Maatregelen'!E33,""))) -> Indien vernietigen niet mogelijk is beperk de toegang tot strikt noodzakelijke. | N42: =IF('Concern Maatregelen'!F33=3,"Concern-vereist",IF('Bewaren en vernietigen'!G11=3,"Gewenst",IF('Bewaren en vernietigen'!G11=4,"Vereist",""))) -> Concern-vereist
B43: Beveiliging
B44: De mate waarin integriteit van de data gewaarborgd is | D44: =IF(Beveiliging!C4=1,"",IF(Beveiliging!C4=2,"LAAG",IF(Beveiliging!C4=3,"HOOG",""))) -> LAAG | F44: =Beveiliging!J3 -> LAAG | H44: =IF('Concern Maatregelen'!C38=3,'Concern Maatregelen'!B38,IF(Beveiliging!C10=3,'Concern Maatregelen'!B38,IF(Beveiliging!C10=4,'Concern Maatregelen'!B38,""))) -> Autorisatie (muteren en inzage) op basis van least privileges. Toegang op basis van “Need to know”. | I44: =IF(F44="hoog",#REF!,IF(Resultaat!F44="gemiddeld",#REF!,"")) ->  | J44: =IF('Concern Maatregelen'!C38=3,"Concern-vereist",IF(Beveiliging!C10=3,"Gewenst",IF(Beveiliging!C10=4,"Vereist",""))) -> Concern-vereist
B45: De mate waarin de vertrouwelijkheid gewaarborgd is | D45: =IF(Beveiliging!C5=1,"",IF(Beveiliging!C5=2,"LAAG",IF(Beveiliging!C5=3,"HOOG",""))) -> LAAG | H45: =IF('Concern Maatregelen'!C39=3,'Concern Maatregelen'!B39,IF(Beveiliging!C11=3,'Concern Maatregelen'!B39,IF(Beveiliging!C11=4,'Concern Maatregelen'!B39,""))) ->  | I45: =IF(F45="hoog",#REF!,IF(Resultaat!F45="gemiddeld",#REF!,"")) ->  | J45: =IF('Concern Maatregelen'!C39=3,"Concern-vereist",IF(Beveiliging!C11=3,"Gewenst",IF(Beveiliging!C11=4,"Vereist",""))) -> 
H46: =IF('Concern Maatregelen'!C40=3,'Concern Maatregelen'!B40,IF(Beveiliging!C12=3,'Concern Maatregelen'!B40,IF(Beveiliging!C12=4,'Concern Maatregelen'!B40,""))) ->  | I46: =IF(F46="hoog",#REF!,IF(Resultaat!F46="gemiddeld",#REF!,"")) ->  | J46: =IF('Concern Maatregelen'!C40=3,"Concern-vereist",IF(Beveiliging!C12=3,"Gewenst",IF(Beveiliging!C12=4,"Vereist",""))) -> 
C47: De mate van inpasbaarheid in een bestaande robuuste authenticatie/ autorisatie infrastructuur | E47: =IF(Beveiliging!G4=1,"",IF(Beveiliging!G4=2,"LAAG",IF(Beveiliging!G4=3,"HOOG",""))) -> LAAG | I47: =IF(F47="hoog",#REF!,IF(Resultaat!F47="gemiddeld",#REF!,"")) ->  | L47: =IF('Concern Maatregelen'!F38=3,'Concern Maatregelen'!E38,IF(Beveiliging!G10=3,'Concern Maatregelen'!E38,IF(Beveiliging!G10=4,'Concern Maatregelen'!E38,""))) ->  | N47: =IF('Concern Maatregelen'!F38=3,"Concern-vereist",IF(Beveiliging!G10=3,"Gewenst",IF(Beveiliging!G10=4,"Vereist",""))) -> 
C48: De mate waarin installatie plaatsvindt op een omgeving die voldoet aan de veiligheidsnormen van de organisatie | E48: =IF(Beveiliging!G5=1,"",IF(Beveiliging!G5=2,"LAAG",IF(Beveiliging!G5=3,"HOOG",""))) -> LAAG | L48: =IF('Concern Maatregelen'!F39=3,'Concern Maatregelen'!E39,IF(Beveiliging!G11=3,'Concern Maatregelen'!E39,IF(Beveiliging!G11=4,'Concern Maatregelen'!E39,""))) -> Stel beveiligingseisen aan bewerkers. | N48: =IF('Concern Maatregelen'!F39=3,"Concern-vereist",IF(Beveiliging!G11=3,"Gewenst",IF(Beveiliging!G11=4,"Vereist",""))) -> Concern-vereist
I49: =IF(F49="hoog",#REF!,IF(Resultaat!F49="gemiddeld",#REF!,"")) ->  | K49: =IF(J49=3,"KAN",IF(J49=5,"MOET","")) -> 
